{"text_format":"3","workbook":"xlsx","n_sheets":4,"sheets":["Трекер проекта","Диаграмма проекта","Об этой книге","Скрытые динамические данные"],"not_rendered":{"charts":1,"defined_names":8},"read":"whole","date_system":"1900"}

{"sheet":"Трекер проекта","index":0,"n_rows":22,"n_cols":7,"rows_kept":22}
["Создайте на этом листе трекер проекта.\nВ ячейке B1 содержится название листа. \nСведения о том, как использовать этот лист, включая инструкции для средств чтения с экрана, приведены на листе «Об этой книге».","Трекер проектов"]
["Введите дату начала вручную в ячейке D2 или найдите наименьшую дату в столбце вех таблицы ниже с помощью примера формулы.",null,"Дата начала:",{"$f":"IFERROR(IF(MIN(Вехи[Дата начала])=0,TODAY(),MIN(Вехи[Дата начала])),TODAY())","v":"2022-01-17"}]
["Введите дату окончания вручную в ячейке D3 или найдите наибольшую дату в столбце вех таблицы ниже с помощью примера формулы.",null,"Дата окончания:",{"$f":"IFERROR(IF(MAX(Вехи[Дата окончания])=0,TODAY(),MAX(Вехи[Дата окончания])),TODAY())","v":"2022-08-15"}]
["Сведения о столбцах в таблице вех можно найти в ячейках с B4 по G4.","В столбце ниже введите последовательность чисел.","Введите дату начала для вехи или действия в столбце ниже.","Введите дату окончания для вехи или действия в столбце ниже.","Введите описание вехи или действия в столбце ниже. Такие описания будут отображаться на диаграмме проекта.","Вычисляется автоматически. Данные в этом столбце используются для отображения вех и действий на диаграмме.","Вычисляется автоматически. Длительность каждой задачи "]
["Ячейки B5 — G5 содержат заголовки таблицы. \nСуществует два скрытых столбца: столбцы «День начала» и «Длительность задачи» в ячейках F5 и G5 вычисляются автоматически и используются для построения диаграммы на листе «Диаграмма Ганта». \nПример данных находится в ячейках с B6 по E21. \nСледующая инструкция находится в ячейке A22.","Позиция","Дата начала","Дата окончания","Веха/действие","День начала","Длительность задач"]
[null,1,{"$f":"TODAY()-10","v":"2022-02-06"},{"$f":"Вехи[[#This Row],[Дата начала]]+10","v":"2022-02-16"},"Начало",{"$f":"IFERROR(IF(OR(LEN(Вехи[[#This Row],[Дата начала]])=0,LEN(Вехи[[#This Row],[Дата окончания]])=0),\"\",INT(C6)-INT($C$6)),\"\")","v":{"v":0,"d":"0 "}},{"$f":"IFERROR(IF(Вехи[[#This Row],[День начала]]=0,DATEDIF(Вехи[[#This Row],[Дата начала]],Вехи[[#This Row],[Дата окончания]],\"d\")+1,IF(LEN(Вехи[[#This Row],[День начала]])=0,\"\",DATEDIF(Вехи[[#This Row],[Дата начала]],Вехи[[#This Row],[Дата окончания]],\"d\")+1)),0)","v":{"v":11,"d":"11 "}}]
[null,2,{"$f":"TODAY()+5","v":"2022-02-21"},{"$f":"Вехи[[#This Row],[Дата начала]]+15","v":"2022-03-08"},{"$f":"\"действие\"&\" \"&ROW($A2)","v":"действие 2"},{"$f":"IFERROR(IF(OR(LEN(Вехи[[#This Row],[Дата начала]])=0,LEN(Вехи[[#This Row],[Дата окончания]])=0),\"\",INT(C7)-INT($C$6)),\"\")","v":{"v":15,"d":"15 "}},{"$f":"IFERROR(IF(Вехи[[#This Row],[День начала]]=0,DATEDIF(Вехи[[#This Row],[Дата начала]],Вехи[[#This Row],[Дата окончания]],\"d\")+1,IF(LEN(Вехи[[#This Row],[День начала]])=0,\"\",DATEDIF(Вехи[[#This Row],[Дата начала]],Вехи[[#This Row],[Дата окончания]],\"d\")+1)),0)","v":{"v":16,"d":"16 "}}]
[null,3,{"$f":"TODAY()-30","v":"2022-01-17"},{"$f":"Вехи[[#This Row],[Дата начала]]+152","v":"2022-06-18"},{"$f":"\"действие\"&\" \"&ROW($A3)","v":"действие 3"},{"$f":"IFERROR(IF(OR(LEN(Вехи[[#This Row],[Дата начала]])=0,LEN(Вехи[[#This Row],[Дата окончания]])=0),\"\",INT(C8)-INT($C$6)),\"\")","v":{"v":-20,"d":"(20)"}},{"$f":"IFERROR(IF(Вехи[[#This Row],[День начала]]=0,DATEDIF(Вехи[[#This Row],[Дата начала]],Вехи[[#This Row],[Дата окончания]],\"d\")+1,IF(LEN(Вехи[[#This Row],[День начала]])=0,\"\",DATEDIF(Вехи[[#This Row],[Дата начала]],Вехи[[#This Row],[Дата окончания]],\"d\")+1)),0)","v":{"v":153,"d":"153 "}}]
[null,4,{"$f":"TODAY()+2","v":"2022-02-18"},{"$f":"Вехи[[#This Row],[Дата начала]]+150","v":"2022-07-18"},{"$f":"\"действие\"&\" \"&ROW($A4)","v":"действие 4"},{"$f":"IFERROR(IF(OR(LEN(Вехи[[#This Row],[Дата начала]])=0,LEN(Вехи[[#This Row],[Дата окончания]])=0),\"\",INT(C9)-INT($C$6)),\"\")","v":{"v":12,"d":"12 "}},{"$f":"IFERROR(IF(Вехи[[#This Row],[День начала]]=0,DATEDIF(Вехи[[#This Row],[Дата начала]],Вехи[[#This Row],[Дата окончания]],\"d\")+1,IF(LEN(Вехи[[#This Row],[День начала]])=0,\"\",DATEDIF(Вехи[[#This Row],[Дата начала]],Вехи[[#This Row],[Дата окончания]],\"d\")+1)),0)","v":{"v":151,"d":"151 "}}]
[null,5,{"$f":"TODAY()+15","v":"2022-03-03"},{"$f":"Вехи[[#This Row],[Дата начала]]+14","v":"2022-03-17"},{"$f":"\"действие\"&\" \"&ROW($A5)","v":"действие 5"},{"$f":"IFERROR(IF(OR(LEN(Вехи[[#This Row],[Дата начала]])=0,LEN(Вехи[[#This Row],[Дата окончания]])=0),\"\",INT(C10)-INT($C$6)),\"\")","v":{"v":25,"d":"25 "}},{"$f":"IFERROR(IF(Вехи[[#This Row],[День начала]]=0,DATEDIF(Вехи[[#This Row],[Дата начала]],Вехи[[#This Row],[Дата окончания]],\"d\")+1,IF(LEN(Вехи[[#This Row],[День начала]])=0,\"\",DATEDIF(Вехи[[#This Row],[Дата начала]],Вехи[[#This Row],[Дата окончания]],\"d\")+1)),0)","v":{"v":15,"d":"15 "}}]
[null,6,{"$f":"TODAY()+30","v":"2022-03-18"},{"$f":"Вехи[[#This Row],[Дата начала]]+45","v":"2022-05-02"},{"$f":"\"действие\"&\" \"&ROW($A6)","v":"действие 6"},{"$f":"IFERROR(IF(OR(LEN(Вехи[[#This Row],[Дата начала]])=0,LEN(Вехи[[#This Row],[Дата окончания]])=0),\"\",INT(C11)-INT($C$6)),\"\")","v":{"v":40,"d":"40 "}},{"$f":"IFERROR(IF(Вехи[[#This Row],[День начала]]=0,DATEDIF(Вехи[[#This Row],[Дата начала]],Вехи[[#This Row],[Дата окончания]],\"d\")+1,IF(LEN(Вехи[[#This Row],[День начала]])=0,\"\",DATEDIF(Вехи[[#This Row],[Дата начала]],Вехи[[#This Row],[Дата окончания]],\"d\")+1)),0)","v":{"v":46,"d":"46 "}}]
[null,7,{"$f":"TODAY()+45","v":"2022-04-02"},{"$f":"Вехи[[#This Row],[Дата начала]]+56","v":"2022-05-28"},{"$f":"\"действие\"&\" \"&ROW($A7)","v":"действие 7"},{"$f":"IFERROR(IF(OR(LEN(Вехи[[#This Row],[Дата начала]])=0,LEN(Вехи[[#This Row],[Дата окончания]])=0),\"\",INT(C12)-INT($C$6)),\"\")","v":{"v":55,"d":"55 "}},{"$f":"IFERROR(IF(Вехи[[#This Row],[День начала]]=0,DATEDIF(Вехи[[#This Row],[Дата начала]],Вехи[[#This Row],[Дата окончания]],\"d\")+1,IF(LEN(Вехи[[#This Row],[День начала]])=0,\"\",DATEDIF(Вехи[[#This Row],[Дата начала]],Вехи[[#This Row],[Дата окончания]],\"d\")+1)),0)","v":{"v":57,"d":"57 "}}]
[null,8,{"$f":"TODAY()+60","v":"2022-04-17"},{"$f":"Вехи[[#This Row],[Дата начала]]+30","v":"2022-05-17"},"действие 8",{"$f":"IFERROR(IF(OR(LEN(Вехи[[#This Row],[Дата начала]])=0,LEN(Вехи[[#This Row],[Дата окончания]])=0),\"\",INT(C13)-INT($C$6)),\"\")","v":{"v":70,"d":"70 "}},{"$f":"IFERROR(IF(Вехи[[#This Row],[День начала]]=0,DATEDIF(Вехи[[#This Row],[Дата начала]],Вехи[[#This Row],[Дата окончания]],\"d\")+1,IF(LEN(Вехи[[#This Row],[День начала]])=0,\"\",DATEDIF(Вехи[[#This Row],[Дата начала]],Вехи[[#This Row],[Дата окончания]],\"d\")+1)),0)","v":{"v":31,"d":"31 "}}]
[null,9,{"$f":"TODAY()+37","v":"2022-03-25"},{"$f":"Вехи[[#This Row],[Дата начала]]+22","v":"2022-04-16"},"действие 9",{"$f":"IFERROR(IF(OR(LEN(Вехи[[#This Row],[Дата начала]])=0,LEN(Вехи[[#This Row],[Дата окончания]])=0),\"\",INT(C14)-INT($C$6)),\"\")","v":{"v":47,"d":"47 "}},{"$f":"IFERROR(IF(Вехи[[#This Row],[День начала]]=0,DATEDIF(Вехи[[#This Row],[Дата начала]],Вехи[[#This Row],[Дата окончания]],\"d\")+1,IF(LEN(Вехи[[#This Row],[День начала]])=0,\"\",DATEDIF(Вехи[[#This Row],[Дата начала]],Вехи[[#This Row],[Дата окончания]],\"d\")+1)),0)","v":{"v":23,"d":"23 "}}]
[null,10,{"$f":"TODAY()-20","v":"2022-01-27"},{"$f":"Вехи[[#This Row],[Дата начала]]+160","v":"2022-07-06"},"действие 10",{"$f":"IFERROR(IF(OR(LEN(Вехи[[#This Row],[Дата начала]])=0,LEN(Вехи[[#This Row],[Дата окончания]])=0),\"\",INT(C15)-INT($C$6)),\"\")","v":{"v":-10,"d":"(10)"}},{"$f":"IFERROR(IF(Вехи[[#This Row],[День начала]]=0,DATEDIF(Вехи[[#This Row],[Дата начала]],Вехи[[#This Row],[Дата окончания]],\"d\")+1,IF(LEN(Вехи[[#This Row],[День начала]])=0,\"\",DATEDIF(Вехи[[#This Row],[Дата начала]],Вехи[[#This Row],[Дата окончания]],\"d\")+1)),0)","v":{"v":161,"d":"161 "}}]
[null,11,{"$f":"TODAY()+20","v":"2022-03-08"},{"$f":"Вехи[[#This Row],[Дата начала]]+65","v":"2022-05-12"},"действие 11",{"$f":"IFERROR(IF(OR(LEN(Вехи[[#This Row],[Дата начала]])=0,LEN(Вехи[[#This Row],[Дата окончания]])=0),\"\",INT(C16)-INT($C$6)),\"\")","v":{"v":30,"d":"30 "}},{"$f":"IFERROR(IF(Вехи[[#This Row],[День начала]]=0,DATEDIF(Вехи[[#This Row],[Дата начала]],Вехи[[#This Row],[Дата окончания]],\"d\")+1,IF(LEN(Вехи[[#This Row],[День начала]])=0,\"\",DATEDIF(Вехи[[#This Row],[Дата начала]],Вехи[[#This Row],[Дата окончания]],\"d\")+1)),0)","v":{"v":66,"d":"66 "}}]
[null,12,{"$f":"TODAY()+70","v":"2022-04-27"},{"$f":"Вехи[[#This Row],[Дата начала]]+67","v":"2022-07-03"},"действие 12",{"$f":"IFERROR(IF(OR(LEN(Вехи[[#This Row],[Дата начала]])=0,LEN(Вехи[[#This Row],[Дата окончания]])=0),\"\",INT(C17)-INT($C$6)),\"\")","v":{"v":80,"d":"80 "}},{"$f":"IFERROR(IF(Вехи[[#This Row],[День начала]]=0,DATEDIF(Вехи[[#This Row],[Дата начала]],Вехи[[#This Row],[Дата окончания]],\"d\")+1,IF(LEN(Вехи[[#This Row],[День начала]])=0,\"\",DATEDIF(Вехи[[#This Row],[Дата начала]],Вехи[[#This Row],[Дата окончания]],\"d\")+1)),0)","v":{"v":68,"d":"68 "}}]
[null,13,{"$f":"TODAY()+90","v":"2022-05-17"},{"$f":"Вехи[[#This Row],[Дата начала]]+14","v":"2022-05-31"},"действие 13",{"$f":"IFERROR(IF(OR(LEN(Вехи[[#This Row],[Дата начала]])=0,LEN(Вехи[[#This Row],[Дата окончания]])=0),\"\",INT(C18)-INT($C$6)),\"\")","v":{"v":100,"d":"100 "}},{"$f":"IFERROR(IF(Вехи[[#This Row],[День начала]]=0,DATEDIF(Вехи[[#This Row],[Дата начала]],Вехи[[#This Row],[Дата окончания]],\"d\")+1,IF(LEN(Вехи[[#This Row],[День начала]])=0,\"\",DATEDIF(Вехи[[#This Row],[Дата начала]],Вехи[[#This Row],[Дата окончания]],\"d\")+1)),0)","v":{"v":15,"d":"15 "}}]
[null,14,{"$f":"TODAY()+100","v":"2022-05-27"},{"$f":"Вехи[[#This Row],[Дата начала]]+3","v":"2022-05-30"},"действие 14",{"$f":"IFERROR(IF(OR(LEN(Вехи[[#This Row],[Дата начала]])=0,LEN(Вехи[[#This Row],[Дата окончания]])=0),\"\",INT(C19)-INT($C$6)),\"\")","v":{"v":110,"d":"110 "}},{"$f":"IFERROR(IF(Вехи[[#This Row],[День начала]]=0,DATEDIF(Вехи[[#This Row],[Дата начала]],Вехи[[#This Row],[Дата окончания]],\"d\")+1,IF(LEN(Вехи[[#This Row],[День начала]])=0,\"\",DATEDIF(Вехи[[#This Row],[Дата начала]],Вехи[[#This Row],[Дата окончания]],\"d\")+1)),0)","v":{"v":4,"d":"4 "}}]
[null,15,{"$f":"TODAY()+50","v":"2022-04-07"},{"$f":"Вехи[[#This Row],[Дата начала]]+130","v":"2022-08-15"},"действие 15",{"$f":"IFERROR(IF(OR(LEN(Вехи[[#This Row],[Дата начала]])=0,LEN(Вехи[[#This Row],[Дата окончания]])=0),\"\",INT(C20)-INT($C$6)),\"\")","v":{"v":60,"d":"60 "}},{"$f":"IFERROR(IF(Вехи[[#This Row],[День начала]]=0,DATEDIF(Вехи[[#This Row],[Дата начала]],Вехи[[#This Row],[Дата окончания]],\"d\")+1,IF(LEN(Вехи[[#This Row],[День начала]])=0,\"\",DATEDIF(Вехи[[#This Row],[Дата начала]],Вехи[[#This Row],[Дата окончания]],\"d\")+1)),0)","v":{"v":131,"d":"131 "}}]
[{"$nulls":4},"действие 16",{"$f":"IFERROR(IF(OR(LEN(Вехи[[#This Row],[Дата начала]])=0,LEN(Вехи[[#This Row],[Дата окончания]])=0),\"\",INT(C21)-INT($C$6)),\"\")","v":""},{"$f":"IFERROR(IF(Вехи[[#This Row],[День начала]]=0,DATEDIF(Вехи[[#This Row],[Дата начала]],Вехи[[#This Row],[Дата окончания]],\"d\")+1,IF(LEN(Вехи[[#This Row],[День начала]])=0,\"\",DATEDIF(Вехи[[#This Row],[Дата начала]],Вехи[[#This Row],[Дата окончания]],\"d\")+1)),0)","v":""}]
["Чтобы добавить еще вехи или действия, вставьте новые строки над этой.\nЭто последняя инструкция на данном листе.","Чтобы добавить другие вехи или действия, вставьте новые строки над этой."]

{"sheet":"Диаграмма проекта","index":1,"n_rows":1,"n_cols":1,"rows_kept":1}
["На этом листе находится диаграмма Ганта с полосой прокрутки. \nПолоса прокрутки начинается в ячейке B29.\nЭто последняя инструкция на данном листе."]

{"sheet":"Об этой книге","index":2,"n_rows":6,"n_cols":1,"rows_kept":6}
["Об этой книге"]
["\nВведите свои данные на листе «Трекер проекта», а затем прокрутите временную шкалу на листе «Диаграмма проекта». \n"]
["Столбец «Позиция» на листе «Трекер проекта» позволяет отображать вехи и действия на отдельных строках. Это полезно, если у вас есть две вехи или действия, которые начинаются в один и тот же день и выполняются параллельно. Если для них задана одинаковая позиция, они будут перекрываться на диаграмме. Присвойте два уникальных значения, чтобы разделить их. Попробуйте сами!\n\nВ конце диаграммы вы можете заметить маркеры без текста и длительности. Они обозначают конец вех, заданных в таблице «Трекер проекта». Чтобы просмотреть вехи на диаграмме, просто прокрутите ее назад или в начало.\n"]
["Инструкции для средств чтения с экрана"]
["Эта книга состоит из четырех листов. \n\nТрекер проекта\nДиаграмма проекта\nОб этой книге\nДинамические данные диаграммы (скрытый)\n\nИнструкции для соответствующего листа находятся на каждом листе в столбце A, начиная с ячейки A1. Они представлены в виде скрытого текста. Инструкция для каждого шага находится в соответствующей строке. Последующие шаги описаны в ячейках A2, A3 и т. д., если явно не указано иное. Например, в инструкциях может быть сказано «Далее см. ячейку A6». \n\nСкрытый текст не выводится на печать.\n\nЧтобы убрать эти инструкции с листа, просто удалите столбец A.\n"]
["Это последняя инструкция на данном листе."]

{"sheet":"Скрытые динамические данные","index":3,"n_rows":10,"n_cols":6,"rows_kept":10,"hidden":true}
["Название этого листа указано в ячейке B1.","Динамические данные диаграммы"]
["В ячейке B2 выводится заголовок «Шаг горизонтальной прокрутки».\nЧтобы прокрутить данные вручную, введите новое значение в ячейке B3.\nПрокрутка автоматически обновляется при перетаскивании ползунка прокрутки вперед или назад на листе «Диаграмма Ганта».","Шаг горизонтальной прокрутки"]
["Автоматически обновленное значение прокрутки выводится в ячейке B3.",0]
["Название таблицы находится в ячейке B4.","Таблица динамических данных"]
["Ячейки B5 — E5 содержат заголовки таблицы. \nВ ячейке F5 есть примечание.\nЭта таблица позволяет одновременно отобразить до пяти вех. \nНе изменяйте и не удаляйте этот лист и его содержимое.","веха","дата","День начала","длительность","<-- одновременно можно отобразить до пяти вех"]
[null,{"$f":"IFERROR(IF(LEN(OFFSET('Трекер проекта'!$E6,$B$3,0,1,1))=0,\"\",INDEX(Вехи[],'Трекер проекта'!$B6+$B$3,4)),\"\")","v":"Начало"},{"$f":"IFERROR(IF(LEN(OFFSET('Трекер проекта'!$C6,$B$3,0,1,1))=0,Дата_окончания,INDEX(Вехи[],'Трекер проекта'!$B6+$B$3,2)),\"\")","v":"2022-02-06"},{"$f":"IFERROR(IF(LEN(OFFSET('Трекер проекта'!$F6,$B$3,0,1,1))=0,\"\",INDEX(Вехи[],'Трекер проекта'!$B6+$B$3,5)),\"\")","v":0},{"$f":"IFERROR(IF(LEN(OFFSET('Трекер проекта'!$G6,$B$3,0,1,1))=0,\"\",INDEX(Вехи[],'Трекер проекта'!$B6+$B$3,6)),\"\")","v":11}]
[null,{"$f":"IFERROR(IF(LEN(OFFSET('Трекер проекта'!$E7,$B$3,0,1,1))=0,\"\",INDEX(Вехи[],'Трекер проекта'!$B7+$B$3,4)),\"\")","v":"действие 2"},{"$f":"IFERROR(IF(LEN(OFFSET('Трекер проекта'!$C7,$B$3,0,1,1))=0,Дата_окончания,INDEX(Вехи[],'Трекер проекта'!$B7+$B$3,2)),\"\")","v":"2022-02-21"},{"$f":"IFERROR(IF(LEN(OFFSET('Трекер проекта'!$F7,$B$3,0,1,1))=0,\"\",INDEX(Вехи[],'Трекер проекта'!$B7+$B$3,5)),\"\")","v":15},{"$f":"IFERROR(IF(LEN(OFFSET('Трекер проекта'!$G7,$B$3,0,1,1))=0,\"\",INDEX(Вехи[],'Трекер проекта'!$B7+$B$3,6)),\"\")","v":16}]
[null,{"$f":"IFERROR(IF(LEN(OFFSET('Трекер проекта'!$E8,$B$3,0,1,1))=0,\"\",INDEX(Вехи[],'Трекер проекта'!$B8+$B$3,4)),\"\")","v":"действие 3"},{"$f":"IFERROR(IF(LEN(OFFSET('Трекер проекта'!$C8,$B$3,0,1,1))=0,Дата_окончания,INDEX(Вехи[],'Трекер проекта'!$B8+$B$3,2)),\"\")","v":"2022-01-17"},{"$f":"IFERROR(IF(LEN(OFFSET('Трекер проекта'!$F8,$B$3,0,1,1))=0,\"\",INDEX(Вехи[],'Трекер проекта'!$B8+$B$3,5)),\"\")","v":-20},{"$f":"IFERROR(IF(LEN(OFFSET('Трекер проекта'!$G8,$B$3,0,1,1))=0,\"\",INDEX(Вехи[],'Трекер проекта'!$B8+$B$3,6)),\"\")","v":153}]
[null,{"$f":"IFERROR(IF(LEN(OFFSET('Трекер проекта'!$E9,$B$3,0,1,1))=0,\"\",INDEX(Вехи[],'Трекер проекта'!$B9+$B$3,4)),\"\")","v":"действие 4"},{"$f":"IFERROR(IF(LEN(OFFSET('Трекер проекта'!$C9,$B$3,0,1,1))=0,Дата_окончания,INDEX(Вехи[],'Трекер проекта'!$B9+$B$3,2)),\"\")","v":"2022-02-18"},{"$f":"IFERROR(IF(LEN(OFFSET('Трекер проекта'!$F9,$B$3,0,1,1))=0,\"\",INDEX(Вехи[],'Трекер проекта'!$B9+$B$3,5)),\"\")","v":12},{"$f":"IFERROR(IF(LEN(OFFSET('Трекер проекта'!$G9,$B$3,0,1,1))=0,\"\",INDEX(Вехи[],'Трекер проекта'!$B9+$B$3,6)),\"\")","v":151}]
[null,{"$f":"IFERROR(IF(LEN(OFFSET('Трекер проекта'!$E10,$B$3,0,1,1))=0,\"\",INDEX(Вехи[],'Трекер проекта'!$B10+$B$3,4)),\"\")","v":"действие 5"},{"$f":"IFERROR(IF(LEN(OFFSET('Трекер проекта'!$C10,$B$3,0,1,1))=0,Дата_окончания,INDEX(Вехи[],'Трекер проекта'!$B10+$B$3,2)),\"\")","v":"2022-03-03"},{"$f":"IFERROR(IF(LEN(OFFSET('Трекер проекта'!$F10,$B$3,0,1,1))=0,\"\",INDEX(Вехи[],'Трекер проекта'!$B10+$B$3,5)),\"\")","v":25},{"$f":"IFERROR(IF(LEN(OFFSET('Трекер проекта'!$G10,$B$3,0,1,1))=0,\"\",INDEX(Вехи[],'Трекер проекта'!$B10+$B$3,6)),\"\")","v":15}]